[Event "12th National Schools-ch 2024"]
[Site "Gyan Bhawan Patna"]
[Date "2024.02.06"]
[Round "1.2"]
[White "Nepal, Prakash Chandra"]
[Black "Advik Amit Agrawal"]
[Result "0-1"]
[ECO "C00"]
[WhiteElo "1900"]
[BlackElo "1490"]
[Annotator "TA"]
[PlyCount "72"]
[EventDate "2024.02.05"]
[EventCountry "IND"]
[SourceTitle "playchess.com"]
[Source "ChessBase"]
[SourceQuality "1"]
[TimeControl "5400+30"]

{[%evp 9,71,7,22,2,20,-356,-341,-382,-384,-383,-338,-400,-358,-408,-400,-414,-405,-446,-425,-414,-390,-391,-392,-421,-368,-408,-392,-409,-418,-452,-445,-458,-452,-551,-431,-475,-404,-412,-399,-400,-371,-377,-373,-375,-384,-387,-379,-654,-608,-1038,-985,-4862,-4862,-4862,-4862,-4790,-2452,-29991,-29992,-29993,-29994,-29997,-29998,-29999]} 1. e4 {[%emt 0:00:09]} e6 {[%emt 0:00:39]} 2. Nf3 {[%emt 0:00:42]} d5 {[%emt 0:00:15]} 3. Nc3 {[%emt 0:00:35]} dxe4 {[%emt 0:00:17]} 4. Nxe4 {[%emt 0:00:17]} Nd7 {[%emt 0:00:09]} 5. Bb5 {[%emt 0:00:34]} c6 {[%emt 0:00:14]} 6. Bc4 {[%emt 0:00:32]} Ngf6 {[%emt 0:00:12] [#]} 7. O-O $2 {[%emt 0:01:15][%mdl 8192]} Nxe4 $19 {[%emt 0:00:50]} 8. d3 {[%emt 0:00:33] Black has a decisive advantage.} Nef6 {[%emt 0:00:13]} 9. Bf4 {[%emt 0:01:25]} Be7 {[%emt 0:00:51]} 10. Re1 {[%emt 0:01:13]} O-O {[%emt 0:00:26]} 11. h3 {[%emt 0:01:31]} Nd5 {[%emt 0:00:36]} 12. Bxd5 {[%emt 0:02:14]} cxd5 {[%emt 0:00:19]} ({Don't take} 12... exd5 13. c4 $19) 13. c4 {[%emt 0:01:33]} Nf6 {[%emt 0:00:26]} 14. Ne5 {[%emt 0:02:24]} Qb6 {[%emt 0:00:29]} 15. b3 {[%emt 0:01:49]} Rd8 {[%emt 0:00:33]} 16. Be3 {[%emt 0:01:11]} d4 {[%emt 0:00:51]} 17. Bd2 {[%emt 0:01:42]} Bd7 {[%emt 0:00:07]} 18. a4 {[%emt 0:01:12]} a5 {[%emt 0:00:18]} 19. Rb1 {[%emt 0:00:49]} Bb4 {[%emt 0:00:23]} 20. Bxb4 {[%emt 0:01:20]} Qxb4 {[%emt 0:00:22]} 21. Nxd7 {[%emt 0:01:28]} Rxd7 {[%emt 0:01:25]} 22. Qf3 {[%emt 0:01:38]} Rad8 {[%emt 0:00:12]} 23. Re5 {[%emt 0:02:55]} Qd2 {[%emt 0:00:46]} 24. Rb5 {[%emt 0:01:28]} Kf8 {[%emt 0:04:15]} 25. b4 {[%emt 0:01:16]} axb4 {[%emt 0:00:41]} 26. R5xb4 {[%emt 0:00:39]} e5 {[%emt 0:00:39]} 27. Rxb7 {[%emt 0:00:50]} Rxb7 {[%emt 0:00:29]} 28. Rxb7 {[%emt 0:00:37] [#]} (28. Qxb7 Qxd3 29. Qb4+ Kg8 30. Kh2) 28... e4 $1 {[%emt 0:00:09]} 29. dxe4 {[%emt 0:00:37]} (29. Qg3 exd3) 29... d3 {[%emt 0:00:07] ...Qc1+ is the strong threat.} 30. e5 {[%emt 0:00:43]} Qe1+ {[%emt 0:00:08]} 31. Kh2 {[%emt 0:00:42]} Qxe5+ {[%emt 0:00:07]} 32. g3 {[%emt 0:01:58]} d2 {[%emt 0:00:07]} 33. Qd1 {[%emt 0:01:06]} Qe1 {[%emt 0:00:09] Black mates.} 34. Qf3 {[%emt 0:01:48]} d1=Q {[%emt 0:00:15][%csl Gd1][%cal Re1g1]} 35. Qa3+ {[%emt 0:00:34]} Kg8 {[%emt 0:00:02][%cal Re1f2]} 36. h4 {[%emt 0:03:05]} Qh1# {[%emt 0:00:01] Black took control after the opening.   Weighted Error Value: White=0.92/Black=0.31.  Loses game:     	White=1     	---        Mistake:       	White=1     	---        Inaccurate:     	White=1     	---        OK:         	White=4     	Black=7      Best:        	---       	Black=1} 0-1

[Event "12th National Schools-ch 2024"]
[Site "Gyan Bhawan Patna"]
[Date "2024.02.06"]
[Round "1.5"]
[White "Aamuktha Guntaka"]
[Black "Aashrita Balaji Guttula"]
[Result "1-0"]
[ECO "B76"]
[WhiteElo "1548"]
[BlackElo "1085"]
[Annotator "NA RC"]
[PlyCount "39"]
[EventDate "2024.02.05"]
[EventCountry "IND"]
[SourceTitle "playchess.com"]
[Source "ChessBase"]
[SourceQuality "1"]
[TimeControl "5400+30"]

1. e4 {[%emt 0:00:39]} c5 {[%emt 0:00:09]} 2. Nf3 {[%emt 0:00:07]} d6 {[%emt 0:00:10]} 3. d4 {[%emt 0:00:06]} cxd4 {[%emt 0:00:06]} 4. Nxd4 {[%emt 0:00:06]} Nf6 {[%emt 0:00:14]} 5. Nc3 {[%emt 0:00:08]} g6 {[%emt 0:00:22]} 6. Be3 {[%emt 0:00:08]} Bg7 {[%emt 0:00:13]} 7. f3 {[%emt 0:00:07]} O-O {[%emt 0:00:22]} 8. Qd2 {[%emt 0:00:15]} Nc6 {[%emt 0:00:36]} 9. O-O-O {[%emt 0:00:11]} Bd7 {[%emt 0:01:27]} 10. Kb1 {[%emt 0:00:20]} Qa5 {[%emt 0:03:39]} 11. g4 {[%emt 0:02:04]} Ne5 {[%emt 0:10:07]} 12. h4 {[%emt 0:02:31]} Rfc8 {[%emt 0:02:44]} 13. h5 {[%emt 0:03:10]} b5 {[%emt 0:04:07]} 14. hxg6 {[%emt 0:02:22]} hxg6 {[%emt 0:03:10]} 15. Bh6 {[%emt 0:01:54]} Nc4 {[%emt 0:02:17]} 16. Bxc4 {[%emt 0:00:41]} Rxc4 {[%emt 0:16:27]} 17. Bxg7 {[%emt 0:00:10]} Ne8 {[%emt 0:05:23]} 18. Qh6 {[%emt 0:01:30]} f6 {[%emt 0:03:34]} 19. Qh8+ {[%emt 0:00:02]} Kf7 {[%emt 0:05:08]} 20. Qf8# {[%emt 0:00:02]} 1-0

[Event "12th National Schools-ch 2024"]
[Site "Gyan Bhawan Patna"]
[Date "2024.02.06"]
[Round "1.8"]
[White "Rudransh Kumar"]
[Black "Sadbhav Rautela"]
[Result "0-1"]
[ECO "C58"]
[WhiteElo "1046"]
[BlackElo "1949"]
[Annotator "TA"]
[PlyCount "62"]
[EventDate "2024.02.05"]
[EventCountry "IND"]
[SourceTitle "playchess.com"]
[Source "ChessBase"]
[SourceQuality "1"]
[TimeControl "5400+30"]

{[%evp 18,62,-91,-101,62,63,33,17,34,41,109,-69,-5,-10,-13,-265,-283,-289,-275,-337,-339,-340,-331,-347,-238,-483,-468,-547,-541,-558,-564,-563,-559,-556,-546,-536,-510,-545,-505,-29991,-29992,-29992,-29993,-29993,-29993,-29998,-29999]} 1. e4 {[%emt 0:00:03]} e5 {[%emt 0:00:51]} 2. Nf3 {[%emt 0:00:09]} Nc6 {[%emt 0:00:08]} 3. Bc4 {[%emt 0:00:07]} Nf6 {[%emt 0:00:25]} 4. Ng5 {[%emt 0:00:07]} d5 {[%emt 0:00:06]} 5. exd5 {[%emt 0:00:04]} Na5 {[%emt 0:00:08]} 6. Bb5+ {[%emt 0:00:09]} c6 {[%emt 0:00:05]} 7. dxc6 {[%emt 0:00:15]} bxc6 {[%emt 0:00:06]} 8. Ba4 {[%emt 0:00:33]} h6 {[%emt 0:01:50]} 9. Nf3 {[%emt 0:00:44]} e4 {[%emt 0:00:23]} 10. Qe2 {[%emt 0:01:53] [#] Nc3 is the strong threat.} Qe7 $2 {[%emt 0:17:41] Black is more active.} (10... Bc5 $1 $17 {Threatens to win with ...0-0.} 11. Ne5 O-O) 11. Ng1 $1 $14 {[%emt 0:00:17]} Be6 {[%emt 0:03:50]} 12. b3 {[%emt 0:01:26]} Qc7 {[%emt 0:05:40] The position is equal.} 13. Bb2 {[%emt 0:01:19]} Be7 {[%emt 0:00:52]} (13... Bc5 $1 $14) 14. Bc3 $2 {[%emt 0:00:22]} ({Better is} 14. Nc3 $16) 14... Nb7 {[%emt 0:08:15]} ({Black should try} 14... O-O $15 15. Qe3 Nb7) 15. f3 $1 $11 {[%emt 0:00:29]} Nc5 $36 {[%emt 0:03:02][%mdl 2048] Hoping for ...0-0. Black has some pressure.} 16. Bxf6 $2 {[%emt 0:05:05][%mdl 8192] This move loses the game for White.} (16. fxe4 $11 Rb8 (16... Nfxe4 17. Bxg7 Rg8 18. Nc3 $11) (16... Ncxe4 17. Bxf6 Nxf6 18. Nc3 $15) 17. d3) 16... Bxf6 $19 {[%emt 0:01:24]} (16... gxf6 17. Nc3 $14) 17. Nc3 {[%emt 0:00:10]} O-O {[%emt 0:01:30]} (17... Nxa4 18. bxa4 Qa5 19. Rd1 $19) 18. fxe4 {[%emt 0:00:33]} Bxc3 {[%emt 0:04:02]} 19. dxc3 {[%emt 0:00:17]} Rfe8 {[%emt 0:00:29][%cal Oc5e4] And now ...Nxe4! would win.} (19... Nxa4 20. bxa4 Bd5 21. Nh3 $17 (21. exd5 $2 Rfe8 $19)) 20. Nf3 {[%emt 0:00:19]} Bxb3 {[%emt 0:01:03]} (20... Nxa4 21. bxa4 Bd5 22. Nd2 $17) 21. O-O $2 {[%emt 0:01:20]} (21. cxb3 $2 Rxe4 $19 (21... Nxe4 $2 22. O-O $18) (21... Nxe4 $2 22. O-O $18)) (21. Bxb3 Rxe4 (21... Nxe4 $2 22. O-O $18) 22. Qxe4 Nxe4 23. O-O) 21... Bxa4 {[%emt 0:00:44]} 22. Qc4 {[%emt 0:00:16]} Qe7 {[%emt 0:01:09][%cal Oa4b5] Strongly threatening ...Bb5!} ({Not} 22... Rxe4 23. Qxc5 Qb6 (23... Bxc2 24. Nd4 $17) 24. Qxb6 axb6 25. Rab1 $17) ({Less strong is} 22... Nxe4 23. Qxa4 Qb6+ (23... Nxc3 24. Qc4 $17) 24. Kh1 $17) 23. Nd4 {[%emt 0:00:45]} Bb5 {[%emt 0:00:54]} 24. Nxb5 {[%emt 0:00:10]} cxb5 {[%emt 0:00:06]} 25. Qxb5 {[%emt 0:00:07]} Nxe4 {[%emt 0:00:11][%cal Oe4d2] aiming for ...Nd2!} 26. Rae1 {[%emt 0:00:20]} Rab8 {[%emt 0:00:44]} 27. Qd3 {[%emt 0:01:04]} Qc5+ {[%emt 0:01:24]} 28. Kh1 {[%emt 0:00:13] [#]} (28. Qe3 $19) 28... Nf2+ {[%emt 0:00:13] Black mates.} 29. Rxf2 {[%emt 0:00:08]} Rxe1+ {[%emt 0:00:18]} 30. Rf1 {[%emt 0:00:15]} Qf2 {[%emt 0:00:14]} 31. Rxe1 {[%emt 0:00:13]} Qxe1+ {[%emt 0:00:06] Weighted Error Value: White=0.88/Black=0.33.  Loses game:     	White=1     	---        Mistake:       	White=3     	Black=2      Inaccurate:     	---       	Black=1      OK:         	White=4     	Black=5      Best:        	White=1     	Black=2      Strong:       	White=2     	---} 0-1

[Event "12th National Schools-ch 2024"]
[Site "Gyan Bhawan Patna"]
[Date "2024.02.06"]
[Round "1.9"]
[White "Bhillva Nilaya Kondari Eswara "]
[Black "Suhani Munet"]
[Result "1-0"]
[ECO "B52"]
[WhiteElo "1843"]
[BlackElo "1091"]
[Annotator "NA RC"]
[PlyCount "75"]
[EventDate "2024.02.05"]
[EventCountry "IND"]
[SourceTitle "playchess.com"]
[Source "ChessBase"]
[SourceQuality "1"]
[TimeControl "5400+30"]

{[%evp 12,74,30,39,24,27,54,34,48,31,35,37,33,31,427,416,425,405,403,390,404,391,390,397,475,418,32767,420,412,419,478,455,590,556,794,896,933,787,739,665,32767,32767,32767,32767,32767,32767,32767,1099,1185,710,865,693,803,866,1457,1875,2169,2550,2100,29966,29986,29987,29977,29984,29979]} 1. e4 {[%emt 0:00:04]} c5 {[%emt 0:00:06]} 2. Nf3 {[%emt 0:00:15]} d6 {[%emt 0:00:08]} 3. Bb5+ {[%emt 0:00:27]} Bd7 {[%emt 0:00:10]} 4. Bxd7+ {[%emt 0:00:20]} Nxd7 {[%emt 0:00:08]} 5. O-O {[%emt 0:01:52]} Ngf6 {[%emt 0:02:42]} 6. Re1 {[%emt 0:06:11]} g6 {[%emt 0:03:27]} 7. c3 {[%emt 0:01:23]} Bg7 {[%emt 0:02:10]} 8. d4 {[%emt 0:00:32]} cxd4 {[%emt 0:00:51]} (8... O-O $11 {is more appropriate.}) 9. cxd4 {[%emt 0:01:19]} O-O {[%emt 0:00:43]} 10. Nc3 {[%emt 0:02:33] B52: Sicilian: Moscow Variation with 3...Bd7.} Rc8 {[%emt 0:04:15] 10...a6 injects fresh life into this line.} 11. h3 {[%emt 0:10:08]} Qa5 {[%emt 0:08:50]} 12. Bd2 $146 {[%emt 0:10:27]} ({Predecessor:} 12. Be3 Qb4 13. Qd2 Nb6 14. a3 Qa5 15. b4 Qa6 16. Rec1 Nc4 17. Qe2 Nxe3 18. Qxa6 bxa6 19. fxe3 {½-½ Wafa,S (2182)-Nikolovska,D (1881) Djerba Online (Women) blitz 2020 (5)}) 12... Nb6 $2 {[%emt 0:13:31] [#]} ({Black should play} 12... e5 $14) 13. Nd5 $1 {[%emt 0:01:24]} Qb5 {[%emt 0:00:21]} 14. Nxe7+ {[%emt 0:00:40]} Kh8 {[%emt 0:01:01]} 15. Nxc8 {[%emt 0:00:52]} Rxc8 {[%emt 0:01:04]} 16. b3 {[%emt 0:02:11]} Re8 {[%emt 0:06:00]} 17. a4 {[%emt 0:08:34]} Qd7 {[%emt 0:01:53]} 18. a5 {[%emt 0:01:49]} Nc8 {[%emt 0:00:24]} 19. Qc2 {[%emt 0:01:28]} Ne7 {[%emt 0:00:55]} 20. Rac1 {[%emt 0:03:47]} Rc8 {[%emt 0:02:48]} 21. Qd3 {[%emt 0:00:48]} Rxc1 {[%emt 0:00:40]} 22. Rxc1 {[%emt 0:00:09]} Qe6 {[%emt 0:00:41]} (22... Kg8 $142 23. d5 Ne8) 23. Ng5 {[%emt 0:03:22]} Qd7 {[%emt 0:00:44]} 24. Nxf7+ {[%emt 0:03:15]} Kg8 {[%emt 0:00:26]} 25. Ng5 {[%emt 0:01:04]} h6 {[%emt 0:00:19]} 26. Nf3 {[%emt 0:01:21]} Nc6 {[%emt 0:00:46]} 27. d5 {[%emt 0:03:06]} Nd8 {[%emt 0:00:52]} 28. e5 {[%emt 0:03:17]} dxe5 {[%emt 0:00:18]} 29. Nxe5 {[%emt 0:01:59]} Qxd5 $18 {[%emt 0:00:10]} 30. Qxd5+ {[%emt 0:01:43]} Nxd5 {[%emt 0:00:17]} 31. Rc8 {[%emt 0:00:14]} Bf6 {[%emt 0:03:44]} 32. a6 {[%emt 0:03:30]} b6 {[%emt 0:01:21]} 33. Nc6 {[%emt 0:00:28]} h5 {[%emt 0:01:26]} 34. Nxd8 {[%emt 0:00:16]} Kg7 {[%emt 0:00:52]} 35. Ra8 {[%emt 0:00:00]} Nc7 {[%emt 0:02:30]} 36. Rxa7 {[%emt 0:00:42]} Bxd8 {[%emt 0:00:24]} 37. Rxc7+ {[%emt 0:00:23]} Bxc7 {[%emt 0:00:11]} 38. a7 {[%emt 0:00:04]} 1-0

[Event "12th National Schools-ch 2024"]
[Site "Gyan Bhawan Patna"]
[Date "2024.02.06"]
[Round "1.10"]
[White "Dangol, Rajkumar"]
[Black "Daksh Goyal"]
[Result "0-1"]
[ECO "B19"]
[WhiteElo "1647"]
[BlackElo "1853"]
[Annotator "NA"]
[PlyCount "132"]
[EventDate "2024.02.05"]
[EventCountry "IND"]
[SourceTitle "playchess.com"]
[Source "ChessBase"]
[SourceQuality "1"]
[TimeControl "5400+30"]

{[%evp 8,132,17,32767,18,21,37,32767,32767,4,2,-7,-20,-18,-9,-2,-11,-14,-10,0,2,0,0,3,12,18,26,22,29,20,29,-56,12,0,24,-42,-37,-44,-52,-52,0,0,0,-8,-10,-10,-9,-111,-93,-286,-277,-295,-258,-288,-209,-220,-137,-249,-181,-187,-185,-176,-141,-279,-274,-304,-287,32767,32767,32767,32767,32767,32767,32767,32767,32767,32767,32767,32767,32767,32767,32767,32767,-540,-360,-351,-422,-419,-428,-488,-433,-502,-561,-655,-472,-486,-520,-605,-594,-458,-302,-319,0,-238,-425,-29970,32767,32767,32767,32767,-2086,-29982,-29987,-29987,-29987,-29988,-29989,32767,-29991,-29992,-29993,-29993,32767,32767,32767,32767,-29996]} 1. e4 {[%emt 0:00:20]} c6 {[%emt 0:03:34]} 2. d4 {[%emt 0:02:09]} d5 {[%emt 0:00:02]} 3. Nc3 {[%emt 0:02:30]} dxe4 {[%emt 0:00:03]} 4. Nxe4 {[%emt 0:00:18]} Bf5 {[%emt 0:00:02]} 5. Ng3 {[%emt 0:02:01]} Bg6 {[%emt 0:00:02]} 6. Nf3 {[%emt 0:00:25]} Nd7 {[%emt 0:00:02]} 7. h4 {[%emt 0:00:39]} h6 {[%emt 0:00:03]} 8. c3 {[%emt 0:01:43]} e6 {[%emt 0:03:48]} 9. h5 {[%emt 0:03:08]} Bh7 {[%emt 0:00:08]} 10. Bd3 {[%emt 0:03:28]} Bxd3 {[%emt 0:00:38]} 11. Qxd3 {[%emt 0:00:20]} Ngf6 {[%emt 0:02:08]} 12. Bf4 {[%emt 0:02:27]} Qa5 {[%emt 0:08:23]} 13. Ne5 {[%emt 0:03:13] B19: Classical Caro-Kann: 4...Bf5 main line.} Nd5 {[%emt 0:11:33]} 14. Qf3 {[%emt 0:10:50]} Nxf4 {[%emt 0:20:09]} 15. Qxf4 {[%emt 0:19:47]} Nxe5 {[%emt 0:47:25]} 16. Qxe5 {[%emt 0:00:09]} Qb6 {[%emt 0:00:00]} 17. O-O-O {[%emt 0:13:09]} O-O-O {[%emt 0:00:00]} 18. Qf4 {[%emt 0:04:03]} Qc7 {[%emt 0:00:00]} 19. Qxc7+ {[%emt 0:03:52]} (19. Qf3 $11) 19... Kxc7 {[%emt 0:00:00]} 20. Kc2 {[%emt 0:01:22]} Rd5 {[%emt 0:00:00]} 21. c4 {[%emt 0:01:22]} (21. Nf1 $11) 21... Rg5 {[%emt 0:00:00]} 22. Rd3 {[%emt 0:03:47]} Bd6 {[%emt 0:00:00]} 23. Rh4 {[%emt 0:03:03]} Rd8 {[%emt 0:00:00]} (23... b5 $15) 24. f4 {[%emt 0:03:52]} Ra5 {[%emt 0:00:00]} 25. Rg4 {[%emt 0:00:48]} Bf8 {[%emt 0:00:00]} 26. a3 {[%emt 0:01:07]} Ra4 {[%emt 0:00:00]} 27. b4 {[%emt 0:02:11] [#]} (27. Kc3 $1 $11) 27... a5 $1 {[%emt 0:00:00]} 28. c5 $2 {[%emt 0:09:59]} (28. f5 $17) 28... axb4 {[%emt 0:00:00]} 29. axb4 {[%emt 0:00:28]} Ra2+ {[%emt 0:00:00]} ({But not} 29... Rxb4 30. Ne2 $19) 30. Kb3 {[%emt 0:01:14]} Rxg2 {[%emt 0:00:00]} 31. Rh4 {[%emt 0:00:32]} Ra8 {[%emt 0:00:00]} 32. Rh1 {[%emt 0:00:13]} (32. f5 $142) 32... b5 {[%emt 0:00:00]} 33. cxb6+ {[%emt 0:00:26]} Kxb6 {[%emt 0:00:00]} 34. Ne4 {[%emt 0:00:14]} Rga2 {[%emt 0:00:00]} 35. Rb1 {[%emt 0:01:32]} (35. Kc4 $17) 35... Rh2 {[%emt 0:02:49]} 36. Nc5 {[%emt 0:00:43]} Rxh5 {[%emt 0:00:54]} 37. Kc4 {[%emt 0:00:24]} Bxc5 {[%emt 0:00:58]} 38. bxc5+ {[%emt 0:00:50]} Kc7 {[%emt 0:00:03]} 39. Rdb3 {[%emt 0:00:07]} Ra4+ {[%emt 0:00:08]} 40. Kd3 {[%emt 0:00:09]} Rh3+ {[%emt 0:00:03]} 41. Ke4 {[%emt 0:00:09]} Rxb3 {[%emt 0:00:18]} 42. Rxb3 {[%emt 0:00:05]} Ra1 {[%emt 0:00:11]} 43. Re3 {[%emt 0:00:36]} Rf1 {[%emt 0:00:27]} 44. Ke5 {[%emt 0:01:12]} h5 {[%emt 0:00:14]} 45. Ke4 {[%emt 0:00:25]} Ra1 {[%emt 0:02:51]} 46. f5 {[%emt 0:00:19]} exf5+ {[%emt 0:00:51]} ({Don't take} 46... Kd7 47. fxe6+ Kxe6 48. d5+ Kd7 (48... cxd5+ 49. Kd4+ Kd7 50. Kxd5 $19) 49. d6 $19) 47. Kxf5 {[%emt 0:00:06]} Kd7 {[%emt 0:00:22]} 48. Kg5 {[%emt 0:00:34]} Rd1 {[%emt 0:01:23]} 49. Re4 {[%emt 0:00:32]} g6 {[%emt 0:00:19]} 50. Rf4 {[%emt 0:01:18]} Ke7 {[%emt 0:00:28]} 51. Re4+ {[%emt 0:00:19]} Kf8 {[%emt 0:00:46]} 52. Kf6 {[%emt 0:00:52]} Rf1+ {[%emt 0:00:03]} 53. Ke5 {[%emt 0:00:07]} Kg7 {[%emt 0:00:24]} (53... Ke7 $142 {[%csl Ge7,Gf1][%cal Rf7f6]} 54. d5 Kd7) 54. Kd6 {[%emt 0:01:04] [#]} Rf6+ $2 {[%emt 0:00:02]} ({Black should try} 54... g5 $1 $19 {[%cal Rg5g4]} 55. Kxc6 g4) 55. Ke7 $2 {[%emt 0:00:47]} (55. Kd7 $1 $11 {and White has nothing to worry.}) 55... g5 {[%emt 0:00:42]} 56. Re5 {[%emt 0:00:37]} (56. d5 $19 cxd5 57. Re5) 56... Kg6 {[%emt 0:03:17]} 57. Re4 {[%emt 0:00:29]} h4 {[%emt 0:00:22]} 58. Re3 {[%emt 0:00:10]} g4 $19 {[%emt 0:00:12]} (58... Re6+ $142 59. Rxe6+ fxe6 60. Kxe6 h3 61. Kd6 h2 62. d5 h1=Q (62... h1=R 63. dxc6 g4 64. c7 Rh8 65. Kd7 g3 66. c8=Q Rxc8 67. Kxc8 g2 68. c6 g1=Q 69. Kb7 Qb1+ 70. Ka7 Qf5 71. Kb6 Kf6 72. c7 Qc8 73. Kc5 Qxc7+ 74. Kd4 Qc6 75. Ke3 Qc3+ 76. Ke4 Qd2 77. Kf3 Kf5 78. Kg3 Qe2 79. Kh3 Kf4 80. Kh4 Qh2#) 63. dxc6 Qe4 (63... Qh2+ {gets mated.} 64. Kd7 Kf7 65. c7 Qh3+ 66. Kc6 Qc8 67. Kd5 g4 68. Ke4 Qxc7 69. Ke3 Qe5+ 70. Kd2 g3 71. Kd3 g2 72. Kc4 g1=Q 73. Kb3 Qexc5 74. Kb2 Qh2+ 75. Kb3 Qhc2#) 64. Kc7 Kf6 65. Kb7 Qb4+ 66. Kc8 Ke6 (66... Qxc5 {is a self mate.} 67. Kd7 Qd4+ 68. Kc8 Ke6 69. Kb8 Kd6 70. Kb7 Qb4+ 71. Kc8 Kxc6 72. Kd8 Qf8#) 67. Kc7 Qxc5 68. Kb7 Kd6 69. Ka8 Kxc6 (69... Qxc6+ 70. Kb8 Qb5+ 71. Ka7 Kc7 72. Ka8 Qb8#) 70. Kb8 Qb4+ 71. Kc8 Qf8#) 59. Re4 {[%emt 0:00:12] [#]} Re6+ $1 {[%emt 0:01:27]} 60. Rxe6+ {[%emt 0:00:08]} fxe6 {[%emt 0:00:02]} 61. Kxe6 {[%emt 0:00:37]} g3 {[%emt 0:00:01]} 62. Kd6 {[%emt 0:00:51]} g2 {[%emt 0:00:02]} 63. Kxc6 {[%emt 0:00:09]} g1=Q {[%emt 0:00:09]} 64. d5 {[%emt 0:00:07]} h3 {[%emt 0:00:11]} 65. d6 {[%emt 0:00:09]} h2 {[%emt 0:00:03]} 66. d7 {[%emt 0:00:08]} h1=Q+ {[%emt 0:00:06]} 0-1

[Event "12th National Schools-ch 2024"]
[Site "Gyan Bhawan Patna"]
[Date "2024.02.06"]
[Round "2.1"]
[White "Kiyana Parihar"]
[Black "Ankita Raj"]
[Result "1-0"]
[ECO "C54"]
[WhiteElo "1341"]
[BlackElo "1549"]
[Annotator "NA RC"]
[PlyCount "109"]
[EventDate "2024.02.05"]
[EventCountry "IND"]
[SourceTitle "playchess.com"]
[Source "ChessBase"]
[SourceQuality "1"]
[TimeControl "5400+30"]

1. e4 {[%emt 0:00:09]} e5 {[%emt 0:00:09]} 2. Nf3 {[%emt 0:00:16]} Nc6 {[%emt 0:00:08]} 3. Bc4 {[%emt 0:00:08]} Bc5 {[%emt 0:00:09]} 4. c3 {[%emt 0:00:10]} Nf6 {[%emt 0:00:33]} 5. d3 {[%emt 0:00:24]} h6 {[%emt 0:00:38]} 6. Nbd2 {[%emt 0:00:14]} d6 {[%emt 0:00:30]} 7. O-O {[%emt 0:00:20]} O-O {[%emt 0:00:26]} 8. a4 {[%emt 0:00:29]} a5 {[%emt 0:00:12]} 9. Re1 {[%emt 0:00:37]} Qe7 {[%emt 0:02:58]} 10. Nf1 {[%emt 0:00:48]} Be6 {[%emt 0:02:07]} 11. Ng3 {[%emt 0:06:43]} d5 {[%emt 0:02:21]} 12. exd5 {[%emt 0:01:07]} Bxd5 {[%emt 0:00:23]} 13. Bxd5 {[%emt 0:00:35]} Nxd5 {[%emt 0:00:25]} 14. d4 {[%emt 0:00:39]} Ba7 {[%emt 0:19:40]} 15. Nxe5 {[%emt 0:00:52]} Qd6 {[%emt 0:02:01]} 16. Nf5 {[%emt 0:04:32]} Qf6 {[%emt 0:04:45]} 17. Qg4 {[%emt 0:04:09]} Nxe5 {[%emt 0:09:31]} 18. Rxe5 {[%emt 0:03:53]} Rfe8 {[%emt 0:01:30]} 19. Rxe8+ {[%emt 0:12:46]} Rxe8 {[%emt 0:00:19]} 20. Bxh6 {[%emt 0:05:21]} g6 {[%emt 0:04:48]} 21. Ne3 {[%emt 0:00:59]} Nxe3 {[%emt 0:03:23]} 22. Bxe3 {[%emt 0:01:43]} Qe7 {[%emt 0:00:29]} 23. h4 {[%emt 0:01:27]} c5 {[%emt 0:05:41]} 24. d5 {[%emt 0:09:04]} Qd6 {[%emt 0:06:20]} 25. c4 {[%emt 0:02:54]} f5 {[%emt 0:00:52]} 26. Qg5 {[%emt 0:04:20]} Bb8 {[%emt 0:01:03]} 27. g3 {[%emt 0:01:20]} Qb6 {[%emt 0:04:17]} 28. h5 {[%emt 0:01:18]} Kf7 {[%emt 0:02:50]} 29. Qxg6+ {[%emt 0:05:36]} Qxg6 {[%emt 0:00:21]} 30. hxg6+ {[%emt 0:00:03]} Kxg6 {[%emt 0:00:09]} 31. Bxc5 {[%emt 0:01:26]} Rc8 {[%emt 0:00:21]} 32. Bd4 {[%emt 0:08:38]} Rxc4 {[%emt 0:00:38]} 33. Bc3 {[%emt 0:00:24]} b6 {[%emt 0:00:27]} 34. Rd1 {[%emt 0:05:49]} Bd6 {[%emt 0:00:37]} 35. Rd4 {[%emt 0:01:24]} Rc5 {[%emt 0:01:05]} 36. f4 {[%emt 0:02:16]} Rc8 {[%emt 0:00:39]} 37. Kg2 {[%emt 0:01:11]} Kh5 {[%emt 0:01:24]} 38. Kf3 {[%emt 0:00:35]} Re8 {[%emt 0:00:50]} 39. Rd1 {[%emt 0:09:07]} Bc5 {[%emt 0:00:27]} 40. Be5 {[%emt 0:00:57]} Rd8 {[%emt 0:03:02]} 41. d6 {[%emt 0:03:52]} Rd7 {[%emt 0:00:46]} 42. Rd5 {[%emt 0:00:45]} Kg6 {[%emt 0:01:11]} 43. g4 {[%emt 0:00:18]} fxg4+ {[%emt 0:00:06]} 44. Kxg4 {[%emt 0:00:10]} Kf7 {[%emt 0:00:28]} 45. Kf5 {[%emt 0:01:12]} Bb4 {[%emt 0:00:41]} 46. Rd1 {[%emt 0:00:17]} Bc5 {[%emt 0:02:27]} 47. Rh1 {[%emt 0:00:47]} Kg8 {[%emt 0:02:13]} 48. Kg6 {[%emt 0:00:25]} Rxd6+ {[%emt 0:02:12]} 49. Bxd6 {[%emt 0:00:12]} Bxd6 {[%emt 0:00:16]} 50. f5 {[%emt 0:00:01]} Be5 {[%emt 0:00:22]} 51. f6 {[%emt 0:00:16]} Bxb2 {[%emt 0:00:21]} 52. f7+ {[%emt 0:00:16]} Kf8 {[%emt 0:00:10]} 53. Re1 {[%emt 0:00:09]} Be5 {[%emt 0:01:38]} 54. Rxe5 {[%emt 0:00:09]} b5 {[%emt 0:00:27]} 55. Re8# {[%emt 0:00:01]} 1-0